fUSD/lending_fUSD_20240712
["ID","MTS","AMOUNT","RATE_DAILY","PERIOD"]
[331799634,1720765942201,-965.25,0.0001441,2]
[331799635,1720765942211,-1057.96,0.0001441,2]
[331799636,1720765942221,-500.0,0.0001441,2]
[331799637,1720765942231,-663.73,0.0001441,2]
[331799638,1720765942241,-500.0,0.0001441,2]
[331799639,1720765942251,-996.83,0.0001441,2]
[331799640,1720765942260,-778.42,0.0001441,2]
[331799641,1720765942270,-500.94,0.0001441,2]
[331799642,1720765942280,-500.0,0.0001441,2]
[331799643,1720765942290,-1011.24,0.0001441,2]
[331799644,1720765942301,-500.0,0.0001441,2]
[331799645,1720765942311,-724.27,0.0001441,2]
[331799646,1720765942320,-500.0,0.0001441,2]
[331799647,1720765942330,-948.7,0.0001441,2]
[331799648,1720765942339,-1338.17,0.0001441,2]
[331799649,1720765942348,-894.67,0.0001441,2]
[331799650,1720765942357,-500.0,0.0001441,2]
[331799651,1720765942367,-691.16,0.0001441,2]
[331799652,1720765942378,-706.91,0.0001441,2]
[331799653,1720765942387,-297.93397182,0.0001441,2]
[331799654,1720765942397,-500.0,0.0001441,2]
[331799655,1720765942406,-1648.59,0.0001441,2]
[331799656,1720765942416,-579.34,0.0001441,2]
[331799657,1720765942426,-534.75,0.0001441,2]
[331799658,1720765942437,-6673.84,0.0001441,2]
[331799659,1720765942447,-500.0,0.0001441,2]
[331799660,1720765942458,-791.66,0.0001441,2]
[331799661,1720765942468,-868.6,0.0001441,2]
[331799662,1720765942480,-503.87,0.0001441,2]
[331799663,1720765942490,-500.0,0.0001441,2]
[331799664,1720765942502,-1463.05,0.0001441,2]
[331799665,1720765942516,-500.0,0.0001441,2]
[331799666,1720765942528,-1711.11,0.0001441,2]
[331799667,1720765942537,-940.12,0.0001441,2]
[331799668,1720765942547,-500.0,0.0001441,2]
[331799669,1720765942556,-500.0,0.0001441,2]
[331799670,1720765942568,-1103.87,0.0001441,2]
[331799671,1720765942578,-838.82,0.0001441,2]
[331799672,1720765942587,-906.68,0.0001441,2]
[331799673,1720765942596,-774.99,0.0001441,2]
[331799674,1720765942605,-500.0,0.0001441,2]
[331799675,1720765942617,-1003.46,0.0001441,2]
[331799676,1720765942626,-776.49,0.0001441,2]
[331799677,1720765942635,-715.19,0.0001441,2]
[331799678,1720765942645,-2671.99,0.0001441,2]
[331799679,1720765942654,-500.0,0.0001441,2]
[331799680,1720765942663,-811.17,0.0001441,2]
[331799681,1720765942674,-1169.16,0.0001441,2]
[331799682,1720765942684,-804.64,0.0001441,2]
[331799683,1720765942703,-516.06,0.0001441,2]
[331799684,1720765942713,-500.0,0.0001441,2]
[331799685,1720765942726,-1567.42,0.0001441,2]
[331799686,1720765942736,-1123.97,0.0001441,2]
[331799687,1720765942747,-1159.17,0.0001441,2]
[331799688,1720765942758,-7796.51,0.0001441,2]
[331799689,1720765942770,-682.47,0.0001441,2]
[331799690,1720765942781,-884.1,0.0001441,2]
[331799691,1720765942791,-3427.86,0.0001441,2]
[331799692,1720765942801,-761.42,0.0001441,2]
[331799693,1720765942811,-500.0,0.0001441,2]
[331799694,1720765942822,-500.0,0.0001441,2]
[331799695,1720765942834,-2349.61,0.0001441,2]
[331799696,1720765942846,-2824.19,0.0001441,2]
[331799697,1720765942857,-544.06,0.0001441,2]
[331799698,1720765942868,-1413.14,0.0001441,2]
[331799699,1720765942878,-500.0,0.0001441,2]
[331799700,1720765942888,-746.16,0.0001441,2]
[331799701,1720765942899,-568.05,0.0001441,2]
[331799702,1720765942910,-1225.06,0.0001441,2]
[331799703,1720765942919,-1040.64,0.0001441,2]
[331799704,1720765942930,-500.0,0.0001441,2]
[331799705,1720765942940,-502.01,0.0001441,2]
[331799706,1720765942951,-945.48,0.0001441,2]
[331799707,1720765942962,-1864.03,0.0001441,2]
[331799708,1720765942972,-500.0,0.0001441,2]
[331799709,1720765942983,-782.62,0.0001441,2]
[331799710,1720765942994,-3139.48,0.0001441,2]
[331799711,1720765943004,-967.92,0.0001441,2]
[331799712,1720765943014,-817.59,0.0001441,2]
[331799713,1720765943024,-760.77,0.0001441,2]
[331799714,1720765943034,-672.02,0.0001441,2]
[331799715,1720765943044,-500.0,0.0001441,2]
[331799716,1720765943054,-500.0,0.0001441,2]
[331799717,1720765943063,-1369.87,0.0001441,2]
[331799718,1720765943073,-503.52,0.0001441,2]
[331799719,1720765943083,-927.94,0.0001441,2]
[331799720,1720765943093,-510.11,0.0001441,2]
[331799721,1720765943103,-883.29,0.0001441,2]
[331799722,1720765943113,-500.0,0.0001441,2]
[331799723,1720765943123,-703.12,0.0001441,2]
[331799724,1720765943133,-913.43,0.0001441,2]
[331799725,1720765943143,-500.0,0.0001441,2]
[331799726,1720765943154,-1249.82,0.0001441,2]
[331799727,1720765943163,-698.85,0.0001441,2]
[331799728,1720765943172,-500.0,0.0001441,2]
[331799729,1720765943182,-513.61,0.0001441,2]
[331799730,1720765943192,-500.0,0.0001441,2]
[331799731,1720765943201,-3390.01,0.0001441,2]
[331799732,1720765943211,-522.91,0.0001441,2]
[331799733,1720765943221,-977.7,0.0001441,2]
[331799734,1720765943232,-641.99,0.0001441,2]
[331799735,1720765943242,-760.44,0.0001441,2]
[331799736,1720765943252,-853.13,0.0001441,2]
[331799737,1720765943262,-534.54,0.0001441,2]
[331799738,1720765943271,-178.72658145,0.0001442,2]
[331799739,1720765943282,-323.86948513,0.00014433,2]
[331799740,1720765943292,-158.92801915,0.00014438,2]
[331799741,1720765943301,-4455.0,0.00014463,7]
[331799742,1720765943311,-500.0,0.00014465,2]
[331799743,1720765943321,-253.74227914,0.00014465,2]
[331799744,1720765943330,-500.0,0.00014465,2]
[331799745,1720765943340,-500.0,0.00014465,2]
[331799746,1720765943350,-500.0,0.00014465,2]
[331799747,1720765943360,-500.0,0.00014465,2]
[331799748,1720765943369,-500.0,0.00014465,2]
[331799749,1720765943379,-600.13,0.00014465,2]
[331799750,1720765943388,-500.0,0.00014465,2]
[331799751,1720765943398,-533.46,0.00014465,2]
[331799752,1720765943408,-637.98455752,0.00014465,2]
[331799753,1720765943418,-547.29,0.00014465,2]
[331799754,1720765943427,-527.94,0.00014465,2]
[331799755,1720765943437,-500.0,0.00014465,2]
[331799756,1720765943447,-500.0,0.00014465,2]
[331799757,1720765943456,-829.62,0.00014465,2]
[331799758,1720765943465,-678.42,0.00014465,2]
[331799759,1720765943475,-500.0,0.00014465,2]
[331799760,1720765943486,-500.0,0.00014465,2]
[331799761,1720765943496,-500.0,0.00014465,2]
[331799762,1720765943508,-1078.13,0.00014465,2]
[331799763,1720765943521,-599.97,0.00014465,2]
[331799764,1720765943530,-572.91,0.00014465,2]
[331799765,1720765943540,-500.0,0.00014465,2]
[331799766,1720765943550,-541.87,0.00014465,2]
[331799767,1720765943559,-561.01,0.00014465,2]
[331799768,1720765943568,-359.45705139,0.00014465,2]
[331799769,1720765943577,-526.37,0.00014465,2]
[331799770,1720765943588,-658.35,0.00014465,2]
[331799771,1720765943599,-597.81,0.00014465,2]
[331799772,1720765943614,-665.34,0.00014465,2]
[331799773,1720765943624,-879.54,0.00014465,2]
[331799774,1720765943634,-1042.83,0.00014465,2]
[331799775,1720765943645,-500.0,0.00014465,2]
[331799776,1720765943656,-500.0,0.00014465,2]
[331799777,1720765943668,-801.96,0.00014465,2]
[331799778,1720765943679,-676.83,0.00014465,2]
[331799779,1720765943689,-576.46,0.00014465,2]
[331799780,1720765943699,-679.71,0.00014465,2]
[331799781,1720765943710,-699.82,0.00014465,2]
[331799782,1720765943720,-902.64,0.00014465,2]
[331799783,1720765943731,-500.0,0.00014465,2]
[331799784,1720765943741,-969.66,0.00014465,2]
[331799785,1720765943752,-1386.9,0.00014465,2]
[331799786,1720765943762,-500.0,0.00014465,2]
[331799787,1720765943772,-380.10625379,0.00014465,2]
[331799788,1720765943782,-832.86,0.00014465,2]
[331799789,1720765943792,-1142.56,0.00014465,2]
[331799790,1720765943802,-584.03,0.00014465,2]
[331799791,1720765943812,-678.02,0.00014465,2]
[331799792,1720765943822,-965.58,0.00014465,2]
[331799793,1720765943833,-980.86,0.00014465,2]
[331799794,1720765943843,-500.0,0.00014465,2]
[331799795,1720765943854,-500.0,0.00014465,2]
[331799796,1720765943865,-625.22,0.00014465,2]
[331799797,1720765943876,-500.0,0.00014465,2]
[331799798,1720765943886,-1043.71,0.00014465,2]
[331799799,1720765943896,-500.0,0.00014465,2]
[331799800,1720765943907,-1095.96,0.00014465,2]
[331799801,1720765943917,-663.07,0.00014465,2]
[331799802,1720765943927,-500.0,0.00014465,2]
[331799803,1720765943938,-1311.76,0.00014465,2]
[331799804,1720765943949,-500.0,0.00014465,2]
[331799805,1720765943959,-1064.74,0.00014465,2]
[331799806,1720765943970,-500.0,0.00014465,2]
[331799807,1720765943983,-500.0,0.00014465,2]
[331799808,1720765943993,-1453.03,0.00014465,2]
[331799809,1720765944005,-506.91,0.00014465,2]
[331799810,1720765944015,-625.46,0.00014465,2]
[331799811,1720765944025,-651.67,0.00014465,2]
[331799812,1720765944035,-1301.15,0.00014465,2]
[331799813,1720765944045,-618.62,0.00014465,2]
[331799814,1720765944055,-500.0,0.00014465,2]
[331799815,1720765944065,-1182.83,0.00014465,2]
[331799816,1720765944075,-871.11,0.00014465,2]
[331799817,1720765944085,-500.0,0.00014465,2]
[331799818,1720765944095,-886.56,0.00014465,2]
[331799819,1720765944105,-500.0,0.00014465,2]
[331799820,1720765944114,-1085.4,0.00014465,2]
[331799821,1720765944124,-896.6,0.00014465,2]
[331799822,1720765944134,-830.96,0.00014465,2]
[331799823,1720765944144,-674.06,0.00014465,2]
[331799824,1720765944155,-1895.01,0.00014465,2]
[331799825,1720765944164,-1172.9,0.00014465,2]
[331799826,1720765944174,-1660.92,0.00014465,2]
[331799827,1720765944184,-644.5,0.00014465,2]
[331799828,1720765944194,-1467.31,0.00014465,2]
[331799829,1720765944204,-981.49,0.00014465,2]
[331799830,1720765944214,-500.0,0.00014465,2]
[331799831,1720765944224,-1112.45,0.00014465,2]
[331799832,1720765944235,-721.53,0.00014465,2]
[331799833,1720765944246,-773.09,0.00014465,2]
[331799834,1720765944259,-750.22,0.00014465,2]
[331799835,1720765944269,-617.12,0.00014465,2]
[331799836,1720765944279,-1485.55,0.00014465,2]
[331799837,1720765944288,-645.73,0.00014465,2]
[331799838,1720765944298,-609.33,0.00014465,2]
[331799839,1720765944307,-1043.11,0.00014465,2]
[331799840,1720765944317,-577.94,0.00014465,2]
[331799841,1720765944327,-1001.09,0.00014465,2]
[331799842,1720765944336,-572.94,0.00014465,2]
[331799843,1720765944347,-826.26,0.00014465,2]
[331799844,1720765944356,-500.0,0.00014465,2]
[331799845,1720765944366,-863.68,0.00014465,2]
[331799846,1720765944376,-978.71,0.00014465,2]
[331799847,1720765944386,-927.14,0.00014465,2]
[331799848,1720765944396,-1033.49,0.00014465,2]
[331799849,1720765944406,-459.75416742,0.00014465,2]
[331799850,1720765944416,-500.0,0.00014465,2]
[331799851,1720765944426,-584.99,0.00014465,2]
[331799852,1720765944436,-1551.06,0.00014465,2]
[331799853,1720765944446,-924.22,0.00014465,2]
[331799854,1720765944456,-936.64,0.00014465,2]
[331799855,1720765944465,-500.0,0.00014465,2]
[331799856,1720765944475,-1266.54,0.00014465,2]
[331799857,1720765944485,-583.16,0.00014465,2]
[331799858,1720765944494,-1145.72,0.00014465,2]
[331799859,1720765944504,-628.89,0.00014465,2]
[331799860,1720765944514,-1072.75,0.00014465,2]
[331799861,1720765944527,-882.64,0.00014465,2]
[331799862,1720765944536,-908.15,0.00014465,2]
[331799863,1720765944546,-617.45,0.00014465,2]
[331799864,1720765944555,-500.0,0.00014465,2]
[331799865,1720765944565,-597.8,0.00014465,2]
[331799866,1720765944575,-1413.12,0.00014465,2]
[331799867,1720765944584,-684.65,0.00014465,2]
[331799868,1720765944595,-1269.4,0.00014465,2]
[331799869,1720765944605,-1009.57,0.00014465,2]
[331799870,1720765944616,-820.34,0.00014465,2]
[331799871,1720765944626,-570.33,0.00014465,2]
[331799872,1720765944637,-751.75,0.00014465,2]
[331799873,1720765944646,-500.0,0.00014465,2]
[331799874,1720765944656,-1287.67,0.00014465,2]
[331799875,1720765944666,-922.77,0.00014465,2]
[331799876,1720765944675,-500.0,0.00014465,2]
[331799877,1720765944684,-1345.39,0.00014465,2]
[331799878,1720765944694,-649.45,0.00014465,2]
[331799879,1720765944703,-536.18,0.00014465,2]
[331799880,1720765944712,-500.0,0.00014465,2]
[331799881,1720765944722,-895.96,0.00014465,2]
[331799882,1720765944733,-566.55,0.00014465,2]
[331799883,1720765944742,-729.38,0.00014465,2]
[331799884,1720765944752,-500.0,0.00014465,2]
[331799885,1720765944762,-1632.41,0.00014465,2]
[331799886,1720765944771,-500.0,0.00014465,2]
[331799887,1720765944781,-1661.47,0.00014465,2]
[331799888,1720765944791,-1622.68,0.00014465,2]
[331799889,1720765944801,-1461.03,0.00014465,2]
[331799890,1720765944811,-932.1,0.00014465,2]
[331799891,1720765944820,-600.18,0.00014465,2]
[331799892,1720765944830,-500.0,0.00014465,2]
[331799893,1720765944840,-652.76,0.00014465,2]
[331799894,1720765944850,-590.79,0.00014465,2]
[331799895,1720765944860,-649.76,0.00014465,2]
[331799896,1720765944869,-562.94,0.00014465,2]
[331799897,1720765944879,-316.7465076,0.00014465,2]
[331799898,1720765944888,-500.0,0.00014465,2]
[331799899,1720765944898,-511.55,0.00014465,2]
[331799900,1720765944908,-682.84,0.00014465,2]
[331799901,1720765944917,-500.0,0.00014465,2]
[331799902,1720765944927,-913.11,0.00014465,2]
[331799903,1720765944937,-500.0,0.00014465,2]
[331799904,1720765944947,-557.92,0.00014465,2]
[331799905,1720765944956,-500.0,0.00014465,2]
[331799906,1720765944966,-665.1,0.00014465,2]
[331799907,1720765944976,-500.0,0.00014465,2]
[331799908,1720765944987,-647.57,0.00014465,2]
[331799909,1720765944996,-655.14,0.00014465,2]
[331799910,1720765945006,-1070.59,0.00014465,2]
[331799911,1720765945016,-500.0,0.00014465,2]
[331799912,1720765945025,-549.77,0.00014465,2]
[331799913,1720765945035,-955.34,0.00014465,2]
[331799914,1720765945045,-500.0,0.00014465,2]
[331799915,1720765945054,-572.55,0.00014465,2]
[331799916,1720765945064,-1087.88,0.00014465,2]
[331799917,1720765945074,-924.38,0.00014465,2]
[331799918,1720765945084,-895.76,0.00014465,2]
[331799919,1720765945093,-877.72,0.00014465,2]
[331799920,1720765945103,-811.35,0.00014465,2]
[331799921,1720765945112,-701.46,0.00014465,2]
[331799922,1720765945122,-943.64,0.00014465,2]
[331799923,1720765945132,-535.3,0.00014465,2]
[331799924,1720765945141,-951.0,0.00014465,2]
[331799925,1720765945155,-533.99,0.00014465,2]
[331799926,1720765945170,-500.0,0.00014465,2]
[331799927,1720765945179,-691.79,0.00014465,2]
[331799928,1720765945189,-749.0,0.00014465,2]
[331799929,1720765945198,-1153.39,0.00014465,2]
[331799930,1720765945208,-646.61,0.00014465,2]
[331799931,1720765945218,-828.98,0.00014465,2]
[331799932,1720765945228,-500.0,0.00014465,2]
[331799933,1720765945238,-797.92,0.00014465,2]
[331799934,1720765945248,-678.2,0.00014465,2]
[331799935,1720765945257,-925.55,0.00014465,2]
[331799936,1720765945267,-742.09,0.00014465,2]
[331799937,1720765945277,-718.26,0.00014465,2]
[331799938,1720765945286,-660.22,0.00014465,2]
[331799939,1720765945295,-685.66,0.00014465,2]
[331799940,1720765945305,-616.92,0.00014465,2]
[331799941,1720765945315,-626.69,0.00014465,2]
[331799942,1720765945325,-578.66,0.00014465,2]
[331799943,1720765945335,-1182.27,0.00014465,2]
[331799944,1720765945344,-751.88,0.00014465,2]
[331799945,1720765945354,-788.87,0.00014465,2]
[331799946,1720765945364,-589.96,0.00014465,2]
[331799947,1720765945374,-1518.85,0.00014465,2]
[331799948,1720765945384,-500.0,0.00014465,2]
[331799949,1720765945394,-863.12,0.00014465,2]
[331799950,1720765945403,-500.0,0.00014465,2]
[331799951,1720765945413,-765.3,0.00014465,2]
[331799952,1720765945423,-1173.86,0.00014465,2]
[331799953,1720765945433,-500.0,0.00014465,2]
[331799954,1720765945443,-714.93,0.00014465,2]
[331799955,1720765945452,-500.0,0.00014465,2]
[331799956,1720765945462,-889.91,0.00014465,2]
[331799957,1720765945472,-500.0,0.00014465,2]
[331799958,1720765945483,-797.27,0.00014465,2]
[331799959,1720765945492,-500.0,0.00014465,2]
[331799960,1720765945502,-508.63,0.00014465,2]
[331799961,1720765945516,-500.0,0.00014465,2]
[331799962,1720765945527,-1002.89,0.00014465,2]
[331799963,1720765945537,-512.8,0.00014465,2]
[331799964,1720765945546,-905.0,0.00014465,2]
[331799965,1720765945560,-500.0,0.00014465,2]
[331799966,1720765945570,-500.0,0.00014465,2]
[331799967,1720765945580,-500.0,0.00014465,2]
[331799968,1720765945591,-504.61,0.00014465,2]
[331799969,1720765945601,-500.0,0.00014465,2]
[331799970,1720765945611,-500.0,0.00014465,2]
[331799971,1720765945621,-998.09,0.00014465,2]
[331799972,1720765945631,-1181.8,0.00014465,2]
[331799973,1720765945641,-1692.88,0.00014465,2]
[331799974,1720765945651,-500.0,0.00014465,2]
[331799975,1720765945661,-806.67,0.00014465,2]
[331799976,1720765945671,-1115.55,0.00014465,2]
[331799977,1720765945680,-1111.86,0.00014465,2]
[331799978,1720765945691,-500.0,0.00014465,2]
[331799979,1720765945700,-500.0,0.00014465,2]
[331799980,1720765945710,-1152.37,0.00014465,2]
[331799981,1720765945720,-451.11741199,0.00014465,2]
[331799982,1720765945729,-500.0,0.00014465,2]
[331799983,1720765945739,-1099.21,0.00014465,2]
[331799984,1720765945748,-500.0,0.00014465,2]
[331799985,1720765945758,-958.58,0.00014465,2]
[331799986,1720765945768,-1435.54,0.00014465,2]
[331799987,1720765945778,-500.0,0.00014465,2]
[331799988,1720765945788,-933.39,0.00014465,2]
[331799989,1720765945798,-500.0,0.00014465,2]
[331799990,1720765945807,-885.22,0.00014465,2]
[331799991,1720765945817,-525.55,0.00014465,2]
[331799992,1720765945827,-578.47,0.00014465,2]
[331799993,1720765945837,-585.1,0.00014465,2]
[331799994,1720765945848,-768.43,0.00014465,2]
[331799995,1720765945858,-500.0,0.00014465,2]
[331799996,1720765945868,-1131.03,0.00014465,2]
[331799997,1720765945879,-500.66,0.00014465,2]
[331799998,1720765945889,-1387.16,0.00014465,2]
[331799999,1720765945899,-769.71,0.00014465,2]
[331800000,1720765945909,-929.61,0.00014465,2]
[331800001,1720765945919,-500.0,0.00014465,2]
[331800002,1720765945929,-1195.55,0.00014465,2]
[331800003,1720765945940,-1164.92,0.00014465,2]
[331800004,1720765945951,-592.67,0.00014465,2]
[331800005,1720765945961,-832.05,0.00014465,2]
[331800006,1720765945970,-1157.39,0.00014465,2]
[331800007,1720765945982,-965.25,0.00014465,2]
[331800008,1720765945991,-1057.96,0.00014465,2]
[331800009,1720765946001,-500.0,0.00014465,2]
[331800010,1720765946011,-663.73,0.00014465,2]
[331800011,1720765946021,-500.0,0.00014465,2]
[331800012,1720765946032,-996.83,0.00014465,2]
[331800013,1720765946041,-778.42,0.00014465,2]
[331800014,1720765946051,-500.94,0.00014465,2]
[331800015,1720765946061,-500.0,0.00014465,2]
[331800016,1720765946071,-1011.24,0.00014465,2]
[331800017,1720765946081,-500.0,0.00014465,2]
[331800018,1720765946092,-724.27,0.00014465,2]
[331800019,1720765946103,-263.37516053,0.00014465,2]
[331800020,1720765946114,-948.7,0.00014465,2]
[331800021,1720765946125,-1338.17,0.00014465,2]
[331800022,1720765946413,-894.67,0.00014465,2]
[331800023,1720765946423,-500.0,0.00014465,2]
[331800024,1720765946433,-691.16,0.00014465,2]
[331800025,1720765946443,-706.91,0.00014465,2]
[331800026,1720765946453,-500.0,0.00014465,2]
[331800027,1720765946463,-1648.59,0.00014465,2]
[331800028,1720765946473,-579.34,0.00014465,2]
[331800029,1720765946483,-534.75,0.00014465,2]
[331800030,1720765946493,-6673.84,0.00014465,2]
[331800031,1720765946502,-500.0,0.00014465,2]
[331800032,1720765946513,-791.66,0.00014465,2]
[331800033,1720765946527,-868.6,0.00014465,2]
[331800034,1720765946536,-503.87,0.00014465,2]
[331800035,1720765946546,-500.0,0.00014465,2]
[331800036,1720765946556,-1463.05,0.00014465,2]
[331800037,1720765946569,-500.0,0.00014465,2]
[331800038,1720765946580,-1711.11,0.00014465,2]
[331800039,1720765946590,-940.12,0.00014465,2]
[331800040,1720765946605,-567.19032331,0.00014465,2]
[331800041,1720765946615,-500.0,0.00014465,2]
[331800042,1720765946624,-1103.87,0.00014465,2]
[331800043,1720765946634,-838.82,0.00014465,2]
[331800044,1720765946644,-906.68,0.00014465,2]
[331800045,1720765946653,-774.99,0.00014465,2]
[331800046,1720765946664,-500.0,0.00014465,2]
[331800047,1720765946674,-1003.46,0.00014465,2]
[331800048,1720765946684,-776.49,0.00014465,2]
[331800049,1720765946693,-715.19,0.00014465,2]
[331800050,1720765946703,-2671.99,0.00014465,2]
[331800051,1720765946713,-811.17,0.00014465,2]
[331800052,1720765946723,-500.0,0.00014465,2]
[331800053,1720765946734,-1169.16,0.00014465,2]
[331800054,1720765946744,-804.64,0.00014465,2]
[331800055,1720765946754,-516.06,0.00014465,2]
[331800056,1720765946764,-507.57398517,0.00014465,2]
[331800057,1720765946775,-1567.42,0.00014465,2]
[331800058,1720765946785,-1123.97,0.00014465,2]
[331800059,1720765946795,-1159.17,0.00014465,2]
[331800060,1720765946805,-7796.51,0.00014465,2]
[331800061,1720765946815,-682.47,0.00014465,2]
[331800062,1720765946825,-884.1,0.00014465,2]
[331800063,1720765946835,-3427.86,0.00014465,2]
[331800064,1720765946845,-761.42,0.00014465,2]
[331800065,1720765946855,-500.0,0.00014465,2]
[331800066,1720765946864,-500.0,0.00014465,2]
[331800067,1720765946874,-2349.61,0.00014465,2]
[331800068,1720765946884,-2824.19,0.00014465,2]
[331800069,1720765946894,-544.06,0.00014465,2]
[331800070,1720765946904,-1413.14,0.00014465,2]
[331800071,1720765946914,-500.0,0.00014465,2]
[331800072,1720765946924,-746.16,0.00014465,2]
[331800073,1720765946935,-568.05,0.00014465,2]
[331800074,1720765946945,-1225.06,0.00014465,2]
[331800075,1720765946954,-1040.64,0.00014465,2]
[331800076,1720765946965,-500.0,0.00014465,2]
[331800077,1720765946975,-502.01,0.00014465,2]
[331800078,1720765946987,-945.48,0.00014465,2]
[331800079,1720765946997,-1864.03,0.00014465,2]
[331800080,1720765947006,-500.0,0.00014465,2]
[331800081,1720765947018,-782.62,0.00014465,2]
[331800082,1720765947028,-3139.48,0.00014465,2]
[331800083,1720765947038,-967.92,0.00014465,2]
[331800084,1720765947048,-817.59,0.00014465,2]
[331800085,1720765947058,-760.77,0.00014465,2]
[331800086,1720765947068,-672.02,0.00014465,2]
[331800087,1720765947078,-500.0,0.00014465,2]
[331800088,1720765947087,-500.0,0.00014465,2]
[331800089,1720765947097,-1369.87,0.00014465,2]
[331800090,1720765947107,-503.52,0.00014465,2]
[331800091,1720765947116,-927.94,0.00014465,2]
[331800092,1720765947126,-510.11,0.00014465,2]
[331800093,1720765947136,-883.29,0.00014465,2]
[331800094,1720765947146,-500.0,0.00014465,2]
[331800095,1720765947157,-913.43,0.00014465,2]
[331800096,1720765947167,-703.12,0.00014465,2]
[331800097,1720765947177,-1249.82,0.00014465,2]
[331800098,1720765947187,-500.0,0.00014465,2]
[331800099,1720765947197,-698.85,0.00014465,2]
[331800100,1720765947206,-500.0,0.00014465,2]
[331800101,1720765947216,-513.61,0.00014465,2]
[331800102,1720765947226,-495.89956781,0.00014465,2]
[331800103,1720765947236,-3390.01,0.00014465,2]
[331800104,1720765947246,-977.7,0.00014465,2]
[331800105,1720765947256,-522.91,0.00014465,2]
[331800106,1720765947266,-641.99,0.00014465,2]
[331800107,1720765947276,-760.44,0.00014465,2]
[331800108,1720765947286,-853.13,0.00014465,2]
[331800109,1720765947296,-534.54,0.00014465,2]
[331800110,1720765947305,-1572.0,0.000145,2]
[331800111,1720765947315,-167.05516023,0.00014503,2]
[331800112,1720765947325,-500.0,0.0001452,2]
[331800113,1720765947334,-500.0,0.0001452,2]
[331800114,1720765947343,-284.81538995,0.0001452,2]
[331800115,1720765947354,-500.0,0.0001452,2]
[331800116,1720765947363,-500.0,0.0001452,2]
[331800117,1720765947373,-500.0,0.0001452,2]
[331800118,1720765947383,-600.13,0.0001452,2]
[331800119,1720765947394,-500.0,0.0001452,2]
[331800120,1720765947403,-533.46,0.0001452,2]
[331800121,1720765947413,-547.29,0.0001452,2]
[331800122,1720765947422,-527.94,0.0001452,2]
[331800123,1720765947432,-540.44612589,0.0001452,2]
[331800124,1720765947442,-500.0,0.0001452,2]
[331800125,1720765947452,-829.62,0.0001452,2]
[331800126,1720765947462,-678.42,0.0001452,2]
[331800127,1720765947472,-500.0,0.0001452,2]
[331800128,1720765947482,-500.0,0.0001452,2]
[331800129,1720765947491,-500.0,0.0001452,2]
[331800130,1720765947501,-1078.13,0.0001452,2]
[331800131,1720765947511,-599.97,0.0001452,2]
[331800132,1720765947526,-572.91,0.0001452,2]
[331800133,1720765947535,-500.0,0.0001452,2]